bitfinex/quotes_ETHUSD_20240608
["timestamp","ask_amount","ask_price","bid_price","bid_amount"]
[1717852694512,2.71812,3679.0,3678.4,4.4535]
[1717852694832,5.71812,3679.0,3678.5,1.39285466]
[1717852695286,2.71812,3679.0,3678.5,1.39285466]
[1717852696595,3.0,3679.1,3678.5,1.39285466]
[1717852696941,2.71781,3679.5,3678.5,1.39285466]
[1717852696942,3.0,3679.4,3678.6,0.55]
[1717852697074,3.0,3679.4,3678.7,1.39285466]
[1717852697275,3.0,3679.4,3678.7,1.74823109]
[1717852697720,3.0,3679.4,3678.8,1.39285466]
[1717852697928,3.0,3679.4,3678.9,5.94035466]
[1717852698078,3.0,3679.9,3678.9,5.94035466]
[1717852698623,3.0,3679.9,3679.0,0.35537643]
[1717852698837,3.0,3679.9,3679.1,1.94285466]
[1717852699422,3.0,3679.9,3679.2,0.35537643]
[1717852699726,2.71754,3679.8,3679.3,1.39285466]
[1717852699928,3.0,3679.7,3679.3,1.39285466]
[1717852700408,3.0,3679.7,3679.4,0.35537643]
[1717852700613,3.0,3679.7,3679.5,1.39285466]
[1717852701434,3.0,3679.7,3679.6,0.35537643]
[1717852701639,2.71722,3680.3,3679.6,1.39285466]
[1717852701783,3.30466022,3680.3,3679.7,1.74823109]
[1717852702104,2.71722,3680.3,3679.7,1.74823109]
[1717852703010,3.0,3680.2,3679.7,1.74823109]
[1717852703692,3.0,3680.2,3679.7,4.10203109]
[1717852705385,3.0,3680.2,3679.7,1.74823109]
[1717852711729,3.30418795,3680.9,3679.9,2.3538]
[1717852711893,2.7168,3680.9,3680.0,1.39285466]
[1717852712399,2.98848,3680.9,3680.1,0.35537643]
[1717852712605,2.98848,3680.9,3680.2,1.39285466]
[1717852713011,2.98848,3680.9,3680.3,0.35537643]
[1717852713245,3.0,3680.8,3680.4,1.39285466]
[1717852713385,3.58732947,3680.8,3680.4,1.39285466]
[1717852713591,3.58732947,3680.8,3680.5,0.35537643]
[1717852713897,3.58732947,3680.8,3680.5,1.39285466]
[1717852714095,3.58732947,3680.8,3680.6,0.35537643]
[1717852714948,5.71635095,3680.7,3680.6,0.35537643]
[1717852715109,9.30368042,3680.7,3680.6,0.35537643]
[1717852715306,9.30368042,3680.7,3679.7,5.48]
[1717852715521,2.7171,3680.4,3679.8,1.39285466]
[1717852715726,2.7171,3680.4,3679.8,1.74823109]
[1717852715943,3.0,3680.3,3679.8,1.74823109]
[1717852719733,2.71727,3680.2,3679.8,1.74823109]
[1717852719910,3.0,3680.1,3679.8,1.39285466]
[1717852726609,3.0,3680.1,3679.9,2.2994]
[1717852726919,3.0,3680.1,3680.0,1.74823109]
[1717852732747,3.63046668,3680.1,3680.0,1.74823109]
[1717852732952,3.63046668,3680.1,3680.0,1.39285466]
[1717852733264,2.3713,3679.8,3678.9,5.48]
[1717852733581,2.3713,3679.8,3679.0,1.74823109]
[1717852733806,2.97147667,3679.8,3679.0,1.74823109]
[1717852734126,3.5588735,3679.8,3679.0,1.74823109]
[1717852734380,3.0,3679.7,3679.0,1.74823109]
[1717852734579,2.71796,3679.3,3679.0,1.74823109]
[1717852734875,3.0,3679.2,3679.0,1.74823109]
[1717852735535,2.71805,3679.1,3679.0,0.35537643]
[1717852735732,2.71805,3679.1,3678.4,4.5242]
[1717852735982,2.71805,3679.1,3679.0,0.35537643]
[1717852736135,2.71805,3679.1,3678.5,1.39285466]
[1717852736337,2.71805,3679.1,3679.0,0.35537643]
[1717852736572,2.71805,3679.1,3678.5,1.39285466]
[1717852736780,2.71805,3679.1,3679.0,0.35537643]
[1717852737083,2.71805,3679.1,3678.5,1.39285466]
[1717852737447,3.0,3679.0,3678.5,1.39285466]
[1717852737652,3.0,3679.0,3678.6,0.35537643]
[1717852737853,3.0,3679.0,3678.7,1.39285466]
[1717852738473,3.0,3679.0,3678.8,0.35537643]
[1717852738778,3.0,3679.0,3678.8,1.74823109]
[1717852739206,3.0,3679.0,3678.9,1.39285466]
[1717852739772,3.0,3679.4,3678.9,1.74823109]
[1717852740815,3.0,3679.4,3679.0,2.3345]
[1717852741013,3.0,3679.9,3679.1,1.94285466]
[1717852741324,3.0,3679.9,3679.2,0.35537643]
[1717852741678,2.71746,3680.0,3679.3,1.39285466]
[1717852742007,2.71746,3680.0,3679.4,0.55]
[1717852742323,2.71746,3680.0,3679.5,1.39285466]
[1717852742704,2.71746,3680.0,3679.6,0.35537643]
[1717852742889,2.71746,3680.0,3679.5,3.72735466]
[1717852742890,2.71746,3680.0,3679.7,1.39285466]
[1717852743084,3.0,3679.9,3679.7,1.74823109]
[1717852743285,3.0,3680.4,3679.7,1.74823109]
[1717852743553,3.58744472,3680.4,3679.7,1.74823109]
[1717852743902,2.71724,3680.2,3679.7,1.74823109]
[1717852744218,3.0,3680.1,3679.7,1.74823109]
[1717852746289,3.6304667,3680.1,3679.7,1.74823109]
[1717852746508,2.7174,3680.0,3679.7,0.35537643]
[1717852746728,2.7174,3680.0,3679.2,2.3345]
[1717852746729,3.0,3679.9,3679.2,2.3345]
[1717852746924,3.0,3679.9,3679.3,1.39285466]
[1717852747134,3.0,3679.9,3679.3,1.74823109]
[1717852747888,3.0,3680.3,3679.4,0.55]
[1717852748114,3.0,3680.3,3679.5,1.39285466]
[1717852748330,3.63515299,3680.3,3679.5,1.39285466]
[1717852748508,3.63515299,3680.3,3679.6,0.35537643]
[1717852748708,4.22259443,3680.3,3679.7,1.39285466]
[1717852748951,0.69396844,3680.2,3679.7,1.39285466]
[1717852749109,0.69396844,3680.2,3679.8,0.35537643]
[1717852749433,0.69396844,3680.2,3679.9,1.39285466]
[1717852749637,0.69396844,3680.2,3679.9,1.74823109]
[1717852750613,2.71731,3680.1,3679.9,0.35537643]
[1717852750935,2.71751,3679.9,3679.0,2.71805]
[1717852751229,3.0,3679.8,3679.1,1.94285466]
[1717852754345,3.0,3679.8,3679.1,1.39285466]
[1717852755156,5.18929,3679.6,3679.1,1.39285466]
[1717852755315,3.818929,3679.5,3679.1,1.39285466]
[1717852755516,4.40637548,3679.5,3679.1,1.39285466]
[1717852756115,2.71784,3679.4,3679.1,1.39285466]
[1717852756339,3.0,3679.3,3679.1,1.39285466]
[1717852757363,3.0,3679.3,3679.2,0.35537643]
[1717852757563,3.0,3679.3,3679.1,1.39285466]
[1717852757864,3.0,3679.3,3679.2,0.35537643]
[1717852758365,3.0,3679.3,3679.1,1.39285466]
[1717852758585,3.0,3679.3,3679.2,0.35537643]
[1717852758865,3.0,3679.3,3679.1,1.39285466]
[1717852759367,3.0,3679.3,3679.2,0.35537643]
[1717852759571,2.7181,3679.1,3678.4,2.2]
[1717852759741,2.7181,3679.1,3678.5,1.39285466]
[1717852760667,3.0,3679.0,3678.5,1.39285466]
[1717852760966,5.13892,3678.9,3678.5,1.39285466]
[1717852761463,5.13892,3678.9,3678.4,2.2]
[1717852761620,5.13892,3678.9,3678.4,3.59285466]
[1717852762933,2.71822,3678.9,3678.5,1.94285466]
[1717852764277,2.4207,3679.2,3678.5,1.94285466]
[1717852765195,3.58757571,3679.3,3678.5,1.94285466]
[1717852765363,3.0,3679.3,3678.6,2.2556]
[1717852765564,3.0,3679.3,3678.7,1.94285466]
[1717852772215,3.0,3679.3,3678.8,0.35537643]
[1717852772533,3.0,3679.3,3678.9,1.94285466]
[1717852773032,2.71798,3679.2,3679.0,0.35537643]
[1717852773317,3.0,3679.1,3679.0,0.35537643]
[1717852774877,2.71814,3679.0,3678.4,2.926]
[1717852775076,3.0,3678.9,3678.5,1.94285466]
[1717852776187,2.71863,3678.4,3678.2,5.48]
[1717852776589,3.0,3678.3,3678.2,5.48]
[1717852776788,3.0,3678.3,3677.9,0.726]
[1717852776973,3.0,3678.3,3678.0,1.39285466]
[1717852777878,2.71872,3678.2,3678.0,1.39285466]
[1717852778178,2.7189,3678.0,3677.5,0.726]
[1717852778423,2.7189,3678.0,3677.6,1.39285466]
[1717852779636,2.7189,3678.0,3677.7,0.55]
[1717852779787,2.7189,3678.0,3677.8,1.39285466]
[1717852783402,2.71909,3677.7,3677.2,0.42591243]
[1717852783604,2.71909,3677.7,3677.2,1.81876709]
[1717852783803,2.71909,3677.7,3677.2,1.39285466]
[1717852784676,3.0,3677.6,3677.2,1.39285466]
[1717852785556,3.0,3677.6,3677.3,0.55]
[1717852785862,2.75205063,3677.5,3676.6,2.3906]
[1717852786023,3.0,3677.4,3676.9,1.94285466]
[1717852786573,3.0,3677.4,3676.6,2.3846]
[1717852786574,2.71942,3677.3,3676.6,2.3846]
[1717852786740,2.71942,3677.3,3676.8,3.563612]
[1717852787305,3.0,3677.2,3676.9,1.73221338]
[1717852787808,3.0,3677.2,3677.0,1.70958947]
[1717852788567,3.0,3677.2,3677.1,0.55]
[1717852788765,3.0,3677.2,3677.1,1.94285466]
[1717852789084,3.0,3677.2,3677.1,2.25958947]
[1717852789896,3.0,3677.7,3677.1,2.25958947]
[1717852790082,3.0,3677.7,3677.2,1.39285466]
[1717852790284,3.0,3677.7,3677.3,0.55]
[1717852790594,3.0,3677.7,3677.4,1.70958947]
[1717852790744,3.0,3677.7,3677.5,0.55]
[1717852790946,3.0,3677.7,3677.5,1.94285466]
[1717852791180,3.0,3677.7,3677.6,0.31673481]
[1717852791342,3.0,3677.7,3677.6,0.86673481]
[1717852798526,3.0,3678.2,3677.6,0.86673481]
[1717852798726,3.0,3678.2,3677.7,0.55]
[1717852798889,3.0,3678.2,3677.7,1.94285466]
[1717852799401,3.0,3678.2,3677.8,0.31673481]
[1717852799611,2.71881,3678.1,3677.7,1.94285466]
[1717852799787,3.63978699,3678.0,3677.9,0.31673481]
[1717852799992,3.63978699,3678.0,3677.2,0.726]
[1717852800206,3.63978699,3678.0,3677.9,0.31673481]
[1717852800436,3.63978699,3678.0,3677.3,1.94285466]
[1717852800588,3.63978699,3678.0,3677.9,0.31673481]
[1717852800788,3.63978699,3678.0,3677.3,1.94285466]
[1717852801088,3.63978699,3678.0,3677.9,0.31673481]
[1717852801290,2.71896,3677.9,3677.3,1.94285466]
[1717852801491,3.0,3677.8,3677.3,1.94285466]
[1717852801808,3.0,3677.8,3677.4,0.726]
[1717852801988,3.0,3677.8,3677.5,1.94285466]
[1717852802326,1.6262336,3678.5,3677.7,3.0876]
[1717852802623,2.71835,3678.7,3678.4,0.726]
[1717852802829,2.990185,3678.7,3678.5,0.31673481]
[1717852803024,2.990185,3678.7,3677.8,1.94285466]
[1717852803025,2.990185,3678.7,3678.2,0.726]
[1717852803182,2.990185,3678.7,3678.3,0.31673481]
[1717852803821,2.990185,3678.7,3678.4,1.276]
[1717852804190,0.271835,3678.7,3678.5,0.31673481]
[1717852804389,1.6262336,3678.8,3678.5,0.726]
[1717852804634,1.6262336,3678.8,3678.6,0.31673481]
[1717852804835,1.6262336,3678.9,3678.6,0.31673481]
[1717852805124,0.58761781,3679.1,3678.6,0.31673481]
[1717852805125,1.6262336,3679.0,3678.6,0.31673481]
[1717852805425,0.73056914,3678.9,3678.4,1.94285466]
[1717852805629,0.73056914,3678.9,3678.5,1.70958947]
[1717852805786,0.73056914,3678.9,3678.6,0.55]
[1717852805990,1.6262336,3678.8,3678.6,0.55]
[1717852806230,1.6262336,3678.8,3678.7,0.31673481]
[1717852806436,2.52067565,3678.8,3678.6,0.55]
[1717852806753,3.0,3678.7,3677.9,2.71893]
[1717852806895,3.0,3678.7,3678.0,1.94285466]
[1717852807227,0.73056914,3678.9,3678.0,1.94285466]
[1717852808445,2.35745873,3678.9,3678.0,1.94285466]
[1717852808605,3.34890847,3678.8,3678.0,1.94285466]
[1717852808807,3.0,3678.7,3678.0,1.94285466]
[1717852809005,5.21457781,3678.7,3678.0,1.94285466]
[1717852809426,3.58768822,3678.7,3678.0,1.94285466]
[1717852809946,3.0,3678.7,3678.0,1.94285466]
[1717852810243,3.86735466,3678.7,3678.0,1.94285466]
[1717852810637,3.0,3678.7,3678.0,1.94285466]
[1717852813301,2.71842,3678.6,3678.0,1.94285466]
[1717852813651,3.0,3678.5,3678.0,1.94285466]
[1717852813852,2.71858,3678.4,3677.3,4.46231]
[1717852814010,3.95967696,3678.3,3677.8,1.39285466]
[1717852814210,3.95967696,3678.3,3677.3,5.19131]
[1717852814211,2.71875,3678.2,3677.3,5.19131]
[1717852814410,3.0,3678.1,3677.4,1.39285466]
[1717852815616,3.0,3678.1,3677.5,0.55]
[1717852815821,2.7189,3678.0,3677.0,2.472]
[1717852816025,3.0,3677.9,3677.1,1.39285466]
[1717852817130,0.88930584,3678.0,3677.1,1.39285466]
[1717852817334,3.0,3678.2,3677.2,0.30617814]
[1717852817533,3.0,3678.2,3677.3,1.94285466]
[1717852817863,4.62688959,3678.4,3677.5,4.46221]
[1717852818062,3.0,3678.4,3677.6,1.94285466]
[1717852818347,5.21453816,3678.8,3677.8,2.71901]
[1717852818551,3.0,3678.8,3677.9,1.94285466]
[1717852818914,3.0,3678.8,3678.0,0.30617814]
[1717852819139,4.09145791,3678.8,3678.1,1.94285466]
[1717852819648,4.09145791,3678.8,3678.2,0.30617814]
[1717852819852,4.09145791,3678.8,3678.3,1.94285466]
[1717852820235,4.09145791,3678.8,3678.4,0.30617814]
[1717852820442,4.09145791,3678.8,3678.5,0.55]
[1717852820752,1.06878575,3678.7,3678.5,0.55]
[1717852820970,1.06878575,3678.7,3678.6,0.30617814]
[1717852821118,1.06878575,3678.7,3678.5,0.55]
[1717852821312,0.58762147,3678.8,3678.6,1.39285466]
[1717852821518,1.62688959,3679.2,3678.7,0.55]
[1717852821719,1.62688959,3679.2,3678.8,1.39285466]
[1717852821915,4.34478959,3679.4,3678.9,0.55]
[1717852822166,2.7179,3679.4,3679.0,1.39285466]
[1717852822371,3.38271896,3679.4,3679.0,1.39285466]
[1717852822670,3.38271896,3679.4,3679.1,0.30617814]
[1717852822834,0.66481896,3679.4,3679.1,0.30617814]
[1717852823423,2.87926885,3679.4,3679.1,0.30617814]
[1717852823674,7.93271648,3679.3,3678.0,2.4877]
[1717852823839,2.71812,3679.1,3678.1,1.94285466]
[1717852824038,1.62688959,3678.9,3678.1,1.94285466]
[1717852824224,1.62688959,3678.8,3678.1,1.94285466]
[1717852824423,0.75178988,3678.7,3678.1,1.94285466]
[1717852825241,2.37867947,3678.7,3678.1,1.94285466]
[1717852825445,5.37867947,3678.7,3678.1,1.94285466]
[1717852825663,3.75178988,3678.7,3678.1,1.94285466]
[1717852825929,0.75178988,3678.7,3678.1,1.94285466]
[1717852826166,5.21451099,3679.0,3678.1,1.94285466]
[1717852826369,3.0,3679.0,3678.2,2.4877]
[1717852826521,3.0,3679.0,3678.3,1.94285466]
[1717852826951,3.0,3679.0,3678.3,4.66149466]
[1717852827151,5.21441563,3679.5,3678.3,4.66149466]
[1717852827337,1.09321656,3679.4,3678.3,4.66149466]
[1717852828228,0.58752604,3679.5,3678.7,2.71834]
[1717852828430,1.62688959,3679.9,3678.8,4.43055466]
[1717852828874,1.62688959,3679.9,3678.9,4.46118]
[1717852829168,1.62688959,3680.0,3679.0,1.94285466]
[1717852829368,4.34424959,3680.1,3679.1,2.71804]
[1717852829687,3.15178496,3680.1,3679.2,1.94285466]
[1717852830870,0.43442496,3680.1,3679.2,1.94285466]
[1717852831041,1.6285175,3680.3,3679.2,1.94285466]
[1717852831238,1.6285175,3680.3,3679.3,2.71785]
[1717852831443,3.0,3680.5,3679.4,1.94285466]
[1717852831851,4.6285175,3680.5,3679.4,1.94285466]
[1717852832259,3.0,3680.5,3679.5,0.33432826]
[1717852832467,1.0236333,3680.4,3679.6,1.94285466]
[1717852832831,1.0236333,3680.4,3679.7,0.33432826]
[1717852833079,1.6285175,3680.3,3679.8,1.94285466]
[1717852833372,0.62395663,3680.2,3679.8,1.94285466]
[1717852833581,0.62395663,3680.2,3679.9,0.33432826]
[1717852833727,3.34119663,3680.2,3679.9,0.33432826]
[1717852833934,3.0,3680.1,3679.9,0.33432826]
[1717852834273,3.0,3680.1,3680.0,0.33432826]
[1717852834631,3.0,3680.1,3679.4,1.39285466]
[1717852834827,3.0,3680.1,3679.5,0.88432826]
[1717852835029,3.0,3680.1,3679.6,1.39285466]
[1717852835376,3.0,3680.1,3679.7,0.55]
[1717852835576,3.571724,3680.1,3679.7,2.27718292]
[1717852835980,3.0,3680.1,3679.8,1.39285466]
[1717852836147,3.0,3680.1,3679.9,0.55]
[1717852836343,3.0,3680.1,3680.0,1.39285466]
[1717852836548,3.0,3680.1,3680.0,0.33432826]
[1717852836774,3.73457575,3680.1,3680.0,0.33432826]
[1717852836977,3.73457575,3680.1,3679.3,2.71785]
[1717852837159,3.73457575,3680.1,3680.0,0.33432826]
[1717852837345,2.71747,3679.9,3679.4,1.39285466]
[1717852837546,2.71762,3679.7,3678.9,5.48]
[1717852837853,3.0,3679.6,3679.0,1.39285466]
[1717852838053,3.0,3679.6,3679.1,0.33432826]
[1717852838267,0.79338121,3679.5,3679.2,1.39285466]
[1717852838668,2.71783,3679.4,3678.4,5.20627]
[1717852838988,3.0,3679.3,3678.5,1.72718292]
[1717852839159,2.71805,3679.2,3678.5,1.72718292]
[1717852839358,3.0,3679.1,3678.5,1.72718292]
[1717852839998,2.71813,3679.0,3678.6,0.55]
[1717852840292,3.0,3678.9,3678.7,1.71603864]
[1717852840515,3.0,3678.9,3678.8,0.55]
[1717852840812,3.0,3678.9,3678.8,1.94285466]
[1717852841092,3.0,3678.9,3678.8,0.87318398]
[1717852842478,2.71782,3679.5,3678.8,2.26603864]
[1717852842479,3.0,3679.4,3678.8,2.26603864]
[1717852842793,3.0,3679.4,3678.9,1.39285466]
[1717852843021,3.0,3679.4,3679.0,0.55]
[1717852843292,2.71792,3679.3,3679.1,0.32318398]
[1717852843651,2.71792,3679.3,3678.3,5.48]
[1717852843652,3.0,3679.2,3678.3,5.48]
[1717852843946,3.0,3679.2,3678.4,2.26603864]
[1717852845474,2.71806,3679.1,3678.4,2.26603864]
[1717852845780,3.0,3679.0,3678.4,2.26603864]
[1717852850071,4.62859561,3679.0,3678.4,2.26603864]
[1717852850655,2.71822,3678.9,3678.4,2.26603864]
[1717852850960,3.0,3678.8,3678.4,2.26603864]
[1717852851381,3.0,3678.8,3678.4,1.94285466]
[1717852851717,3.0,3678.8,3678.5,0.32318398]
[1717852851852,3.0,3678.8,3678.5,1.71603864]
[1717852856783,3.58766889,3678.8,3678.5,1.71603864]
[1717852856958,5.21621701,3678.8,3678.5,1.71603864]
[1717852857157,3.0,3678.8,3678.5,1.71603864]
[1717852864249,3.0,3678.8,3678.6,1.39285466]
[1717852864653,3.0,3678.8,3678.7,0.32318398]
[1717852865396,4.62864825,3678.8,3678.7,0.32318398]
[1717852865743,4.62864825,3678.8,3678.4,0.55]
[1717852865980,1.62864825,3678.7,3678.5,1.39285466]
[1717852866170,1.62864825,3678.7,3678.5,1.71603864]
[1717852866346,1.62864825,3678.6,3678.5,1.71603864]
[1717852866551,1.62864825,3678.6,3678.5,2.26603864]
[1717852866972,0.73468683,3678.6,3678.5,0.32318398]
[1717852867374,1.32231175,3678.6,3677.4,2.3688]
[1717852867574,3.0,3678.8,3677.8,1.39285466]
[1717852867575,1.62854235,3678.4,3677.8,1.39285466]
[1717852867777,1.62854235,3678.5,3677.8,1.71603864]
[1717852867942,1.62854235,3678.4,3677.8,1.71603864]
[1717852868391,1.62854235,3678.4,3677.9,2.3688]
[1717852868577,1.62854235,3678.5,3678.0,1.39285466]
[1717852868772,1.62854235,3678.5,3678.1,0.55]
[1717852868951,1.60054235,3678.5,3678.2,1.39285466]
[1717852869152,1.60054235,3678.5,3678.3,0.55]
[1717852869487,1.60054235,3678.5,3678.4,1.71603864]
[1717852869691,1.60054235,3678.5,3678.4,2.26603864]
[1717852873006,3.58762492,3678.8,3678.4,2.26603864]
[1717852873211,3.58762492,3679.1,3678.5,0.55]
[1717852873365,3.58762492,3679.1,3678.6,1.39285466]
[1717852873366,0.58762492,3679.0,3678.6,1.39285466]
[1717852873707,3.58762492,3679.1,3678.7,0.32318398]
[1717852873935,3.58762492,3679.1,3678.7,1.71603864]
[1717852874077,0.58762492,3679.0,3678.7,1.71603864]
[1717852874603,3.0,3679.1,3678.7,1.71603864]
[1717852874604,0.58762492,3678.9,3678.7,1.71603864]
[1717852874815,3.30589492,3678.8,3678.7,0.32318398]
[1717852875016,6.30589492,3678.8,3678.7,0.32318398]
[1717852875333,6.30589492,3678.8,3678.4,0.55]
[1717852875633,1.62891935,3678.6,3678.4,1.94285466]
[1717852875829,1.62891935,3678.6,3678.5,0.32318398]
[1717852876129,1.62891935,3678.6,3678.5,2.66885466]
[1717852876309,1.62891935,3678.6,3678.5,2.99203864]
[1717852876515,1.62891935,3678.8,3678.5,2.99203864]
[1717852876690,1.62891935,3678.8,3678.6,1.94285466]
[1717852877028,3.58762492,3679.1,3678.6,1.94285466]
[1717852877029,1.62891935,3678.7,3678.6,1.94285466]
[1717852877424,1.62891935,3678.8,3678.6,2.26603864]
[1717852878848,1.62887535,3678.8,3678.6,2.26603864]
[1717852880157,1.62889011,3678.8,3678.6,2.26603864]
[1717852882037,1.62889011,3678.7,3678.6,2.26603864]
[1717852883435,1.62889011,3678.8,3678.6,2.26603864]
[1717852884607,1.62889011,3678.9,3678.6,2.26603864]
[1717852885037,3.58758906,3679.1,3678.6,2.26603864]
[1717852885038,1.62889011,3678.8,3678.6,2.26603864]
[1717852886541,1.62889011,3679.0,3678.7,0.726]
[1717852886741,1.62889011,3679.0,3678.8,1.94285466]
[1717852886967,1.62898299,3679.0,3678.8,1.94285466]
[1717852887242,3.0,3679.1,3678.9,0.32318398]
[1717852887550,1.62898872,3679.0,3678.9,0.32318398]
[1717852887940,3.0,3679.1,3678.9,0.32318398]
[1717852888139,3.0,3679.0,3678.9,0.32318398]
[1717852888469,0.58753993,3679.4,3678.8,1.94285466]
[1717852888668,1.62897204,3679.0,3678.8,1.94285466]
[1717852888873,0.58753993,3679.2,3678.9,0.32318398]
[1717852889072,0.58753993,3679.4,3679.1,0.726]
[1717852889385,0.58753993,3679.3,3679.1,0.726]
[1717852889683,3.0,3679.5,3679.1,0.726]
[1717852889684,1.62927762,3679.2,3679.1,0.726]
[1717852889911,3.58753993,3679.5,3679.1,0.726]
[1717852890095,0.58753993,3679.4,3678.9,2.11885466]
[1717852890299,1.62925579,3679.1,3679.0,1.94285466]
[1717852891896,1.62925579,3679.3,3679.0,2.66885466]
[1717852892212,1.62925579,3679.4,3679.2,0.726]
[1717852892369,1.62925579,3679.5,3679.3,1.94285466]
[1717852892573,1.62925579,3679.6,3679.5,0.726]
[1717852892800,3.80949093,3680.0,3679.5,2.66885466]
[1717852892801,1.62925579,3679.7,3679.5,2.66885466]
[1717852893005,1.62925579,3679.7,3679.5,2.11885466]
[1717852893419,1.62925579,3679.8,3679.6,0.32318398]
[1717852893789,1.62925579,3679.8,3679.5,2.11885466]
[1717852894008,1.62925579,3679.8,3679.7,0.32318398]
[1717852894185,4.62925579,3679.9,3679.7,0.726]
[1717852894397,3.0,3679.9,3679.7,2.44203864]
[1717852894590,1.62925579,3680.0,3679.7,2.44203864]
[1717852894825,1.62925579,3680.1,3679.8,1.39285466]
[1717852895001,1.62925579,3680.3,3679.9,1.276]
[1717852895202,1.62925579,3680.3,3680.1,0.726]
[1717852895392,2.71709,3680.5,3680.1,0.726]
[1717852895393,1.62925579,3680.5,3680.2,1.94285466]
[1717852895590,1.62925579,3680.5,3680.3,0.726]
[1717852895790,1.62925579,3680.6,3680.4,1.39285466]
[1717852895995,1.62925579,3680.9,3680.5,1.276]
[1717852896190,1.62925579,3680.9,3680.5,2.66885466]
[1717852896397,2.71671,3681.0,3680.5,2.66885466]
[1717852896723,2.2166771,3681.2,3680.9,0.726]
[1717852897013,1.62925579,3681.3,3680.9,0.726]
[1717852897316,1.62925579,3681.4,3681.0,0.32318398]
[1717852897479,1.62925579,3681.3,3680.7,0.726]
[1717852897815,0.72610071,3681.2,3680.8,1.71603864]
[1717852898319,0.72610071,3681.2,3680.8,0.32318398]
[1717852898516,0.72610071,3681.2,3680.5,0.55]
[1717852898817,0.72610071,3681.2,3680.6,0.32318398]
[1717852902556,0.72610071,3681.2,3680.7,1.94285466]
[1717852903190,3.08921007,3681.1,3680.8,0.32318398]
[1717852903494,3.08921007,3681.1,3680.0,2.4179]
[1717852903495,3.0,3681.0,3680.0,2.4179]
[1717852903835,3.0,3681.0,3680.1,2.26603864]
[1717852908647,2.3485,3680.9,3680.1,2.26603864]
[1717852908812,0.84377101,3680.8,3680.1,2.26603864]
[1717852909139,3.84377101,3680.8,3680.1,2.26603864]
[1717852909343,0.84377101,3680.8,3680.1,2.26603864]
[1717852909544,2.74972063,3680.7,3680.1,2.26603864]
[1717852909851,2.7169,3680.7,3680.1,2.26603864]
[1717852910020,3.0,3680.6,3680.1,2.26603864]
[1717852910617,5.24147063,3680.5,3680.1,0.32318398]
[1717852910943,5.24147063,3680.5,3679.4,7.68]
[1717852910944,2.71716,3680.3,3679.4,7.68]
[1717852911165,3.0,3680.2,3679.5,1.71603864]
[1717852911936,3.0,3680.7,3679.5,1.71603864]
[1717852912111,3.0,3680.7,3679.6,0.55]
[1717852912313,3.0,3680.7,3679.7,1.39285466]
[1717852912518,3.0,3680.7,3679.8,0.87318398]
[1717852912727,3.0,3680.7,3679.9,1.39285466]
[1717852912910,3.0,3680.7,3680.0,2.9787]
[1717852913226,3.0,3680.7,3680.1,1.71603864]
[1717852913424,3.0,3680.7,3680.2,0.55]
[1717852913649,3.0,3680.7,3680.3,1.39285466]
[1717852914150,3.0,3680.7,3680.4,0.87318398]
[1717852914451,3.0,3680.7,3680.5,1.39285466]
[1717852914768,2.71694,3680.6,3680.4,0.55]
[1717852915029,2.71694,3680.6,3679.7,5.48]
[1717852915209,3.0,3680.5,3679.8,1.94285466]
[1717852917899,3.0,3680.5,3680.0,0.725]
[1717852918103,3.0,3680.5,3680.1,1.94285466]
[1717852921230,2.71711,3680.4,3680.1,1.94285466]
[1717852921442,6.67378839,3680.4,3679.4,7.68]
[1717852921736,2.21593076,3680.3,3680.0,0.725]
[1717852921908,3.30446237,3680.4,3680.0,2.11785466]
[1717852922106,2.71711,3680.4,3680.0,2.11785466]
[1717852922297,2.71711,3680.4,3680.1,0.32273403]
[1717852922497,2.71711,3680.4,3680.3,0.725]
[1717852922698,5.71711,3680.4,3680.3,2.11785466]
[1717852922929,5.71711,3680.4,3680.3,2.99058869]
[1717852924045,3.0,3680.4,3680.3,2.99058869]
[1717852924261,1.62857839,3680.6,3680.3,2.99058869]
[1717852924446,1.62857839,3680.5,3680.4,1.94285466]
[1717852924921,2.71688,3680.7,3680.4,2.26558869]
[1717852925119,3.0,3680.6,3680.4,2.26558869]
[1717852925432,4.6294522,3680.6,3680.4,2.26558869]
[1717852926034,3.58731096,3680.6,3680.4,2.26558869]
[1717852926213,3.0,3680.6,3680.4,2.26558869]
[1717852927537,4.62933451,3680.6,3680.4,2.26558869]
[1717852927954,3.0,3680.6,3680.4,2.26558869]
[1717852928170,5.21665123,3680.6,3680.4,2.26558869]
[1717852928733,4.62932959,3680.6,3680.4,2.26558869]
[1717852929062,1.62932959,3680.5,3680.4,2.26558869]
[1717852929517,4.62932959,3680.6,3680.4,2.26558869]
[1717852930258,4.62932959,3680.6,3680.4,2.23758869]
[1717852930446,3.0,3680.6,3680.4,2.23758869]
[1717852931265,3.0,3680.6,3680.4,0.87273403]
[1717852931458,4.62932959,3680.6,3680.4,0.32273403]
[1717852931660,4.62932959,3680.6,3680.2,0.725]
[1717852931909,4.62932959,3680.6,3680.3,1.39285466]
[1717852932207,4.62932959,3680.6,3680.3,1.71558869]
[1717852932514,4.62932959,3680.6,3680.4,0.725]
[1717852933057,4.62932959,3680.6,3680.5,0.32273403]
[1717852933751,4.62932959,3680.6,3680.4,0.725]
[1717852934091,4.62932959,3680.6,3680.5,0.32273403]
[1717852934294,5.21665123,3680.6,3680.5,1.71558869]
[1717852934586,5.21665123,3680.6,3680.5,1.39285466]
[1717852934787,5.21665123,3680.6,3680.5,1.71558869]
[1717852934993,4.62932959,3680.6,3680.5,1.71558869]
[1717852937598,3.0,3680.6,3680.5,1.71558869]
[1717852940676,3.41505327,3680.6,3680.5,1.71558869]
[1717852940877,4.00237874,3680.6,3680.5,1.71558869]
[1717852941516,4.00237874,3680.6,3680.5,0.32273403]
[1717852942177,2.71703,3680.5,3680.0,0.725]
[1717852942378,1.62926414,3680.2,3680.1,2.26558869]
[1717852943411,1.62926414,3680.2,3680.1,0.32273403]
[1717852943908,1.62926414,3680.2,3679.9,0.725]
[1717852944231,1.62926414,3680.2,3680.0,1.39285466]